Cogmind - Beta 13 @@@ ROGUE MODE // 2024.06.29 @ 18:24:19 Player: QR-TZ Result: Destroyed by Piercing Trap Performance ------------- Evolutions (0) 0 Regions Visited (3) 600 Robots Destroyed (3) 15 Value Destroyed (114) 114 Prototype IDs (0) 0 Alien Tech Used (0) 0 Bonus (0) 0 TOTAL SCORE: 729 Bonus ------- None Cogmind --------- Core Integrity 0/250 Matter 267/300 Energy 198/200 System Corruption 3% Temperature Cool (0) Movement Rolling (95) Ox1 Location -10/Subcaves Parts ------- > --- POWER (1) -------- Subdweller Power Source > --- PROPULSION (2) --- Wheel Wheel > --- UTILITY (2) ------ Disposable Heat Sink Small Storage Unit > --- WEAPON (2) ------- Subdweller Laser Slug Cannon > --- INVENTORY (8) ---- Signal Interpreter Makeshift Hacking Suite Light Assault Rifle Makeshift Sword Scrap Shield Fragment (47) Peak State ------------ > --- POWER ------------ Subdweller Power Source > --- PROPULSION ------- Wheel Wheel > --- UTILITY ---------- Disposable Heat Sink Small Storage Unit > --- WEAPON ----------- Subdweller Laser Makeshift Sword > --- INVENTORY -------- Signal Interpreter Makeshift Hacking Suite Light Assault Rifle Slug Cannon Scrap Shield Fragment [Rating: 14] Favorites ----------- Power Ion Engine Engine Ion Engine Propulsion Light Treads Treads Light Treads Wheel Wheel Utility Small Storage Unit Device Disposable Heat Sink Storage Small Storage Unit Protection Light Armor Plating Weapon Light Assault Rifle Energy Gun EM Pulse Gun Ballistic Gun Light Assault Rifle Ballistic Cannon Slug Cannon Launcher Grenade Launcher Slashing Weapon Makeshift Sword Build | -11 -10 -10 -10 ------- Run | Yrd Mat Min Sub Slots Evolved . | . . . . Power . | . . . . Propulsion . | . . . . Utility . | . . . . Weapon . | . . . . Parts Attached 20 | 6 2 6 6 Power 3 | 1 . 1 1 Engine 3 | 1 . 1 1 Core . | . . . . Reactor . | . . . . Propulsion 4 | 2 . . 2 Treads 2 | 2 . . . Leg . | . . . . Wheel 2 | . . . 2 Hover . | . . . . Flight . | . . . . Utility 5 | 1 2 1 1 Device 1 | . . . 1 Storage 1 | 1 . . . Processor . | . . . . Hackware . | . . . . Protection 3 | . 2 1 . Artifact . | . . . . Weapon 8 | 2 . 4 2 Energy Gun 2 | . . 1 1 Energy Cannon . | . . . . Ballistic Gun 3 | 2 . 1 . Ballistic Cannon 1 | . . . 1 Launcher 1 | . . 1 . Special Weapon . | . . . . Impact Weapon . | . . . . Slashing Weapon 1 | . . 1 . Piercing Weapon . | . . . . Special Melee Weapon . | . . . . Unidentified Prototypes . | . . . . Parts Lost 9 | . . 5 4 Power 2 | . . 1 1 Propulsion 2 | . . . 2 Utility 2 | . . 2 . Weapon 3 | . . 2 1 Highest Loss Streak 5 | . . 5 4 To Critical Strikes . | . . . . Average Slot Usage (%) 92 | . 97 93 86 Engine 11 | . 14 10 12 Treads 22 | . 28 28 7 Wheel 4 | . . . 16 Device 2 | . . . 9 Storage 14 | . 14 14 14 Protection 8 | . 11 11 . Energy Gun 4 | . . 3 12 Ballistic Gun 17 | . 28 22 . Ballistic Cannon 1 | . . . 5 Slashing Weapon 2 | . . 1 8 Naked Turns . | . . . . Heaviest Build 22 | 13 16 16 22 Greatest Support 40 | 40 40 40 40 Greatest Overweight (x) 4 | 1 . . 4 Average Overweight (x) . | . . . . Largest Inventory Capacity 8 | 8 8 8 8 Average Capacity 7 | 6 8 8 8 Most Carried 8 | 4 8 8 5 Average Carried 6 | 2 7 7 4 Final Capacity 8 | 8 8 8 8 Final Carried 8 | 4 8 4 5 Class Distribution -------------------- 100% | Mutant Dominant Class ---------------- Mutant | -10/Materials Mutant | -10/Mines Mutant | -10/Subcaves Resources | -11 -10 -10 -10 ----------- Run | Yrd Mat Min Sub Matter Collected 456 | 181 93 24 158 Remotely . | . . . . Salvage Created 221 | . 43 65 113 Parts 4 | . 1 . 3 Haulers Intercepted . | . . . . Recyclers Shooed . | . . . . Parts Field Recycled . | . . . . Retrieved Matter . | . . . . Parts Self-Destructed . | . . . . Prevented . | . . . . Kills | -11 -10 -10 -10 ------- Run | Yrd Mat Min Sub Combat Hostiles Destroyed 21 | . 1 18 2 Melee 2 | . . . 2 Guns 4 | . 1 3 . AOE 15 | . . 15 . Classes Destroyed 3 | . 1 1 1 Grunt 1 | . 1 . . Subdweller 2 | . . . 2 Assembled 18 | . . 18 . Best Kill Streak 18 | . 1 18 2 Combat Bots Only 18 | . 1 18 2 Max Kills in Single Turn 4 | . 1 4 1 Gunslinging . | . . . . Exploded 4 | . . 4 . Melee 1 | . . . 1 Uniques/NPCs Destroyed . | . . . . Combat | -11 -10 -10 -10 -------- Run | Yrd Mat Min Sub Hostile Shots Fired 78 | . 5 48 25 Missed 23 | . 1 16 6 Damage Taken 1219 | . 46 764 409 Core 251 | . . 59 192 Absorbed by Shields . | . . . . Core Remaining (%) 100 | 100 . . . Volleys Fired 25 | . 7 16 2 Largest 2 | . 2 2 1 Hottest 60 | . 40 60 60 Shots Fired 46 | . 14 30 2 Gun 39 | . 14 23 2 Cannon . | . . . . Launcher 7 | . . 7 . Special . | . . . . Kinetic 29 | . 14 15 . Thermal 2 | . . . 2 Explosive 7 | . . 7 . Electromagnetic 8 | . . 8 . Robot Hit Streak 4 | . 4 3 . Robot Miss Streak 2 | . 1 2 . Penetration Max . | . . . . Secondary Targets 1 | . . 1 . Max Gunslinging Chain 1 | . . 1 . Shots Hit Robots 37 | . 10 13 14 Core Hits 39 | . 3 34 2 Critical Kills . | . . . . Critical Parts Destroyed 1 | . 1 . . Critical Strikes 1 | . 1 . . Destroy 1 | . 1 . . Melee Attacks 21 | . . 4 17 Impact . | . . . . Slashing 21 | . . 4 17 Piercing . | . . . . Sneak Attacks . | . . . . Combat Hostiles . | . . . . Follow-up Attacks . | . . . . Damage Inflicted 1796 | . 105 1181 510 Guns 228 | . 104 124 . Cannons . | . . . . Explosions 1057 | . . 1057 . Melee 510 | . . . 510 Ramming 1 | . 1 . . Kinetic 183 | . 104 79 . Thermal . | . . . . Explosive 1057 | . . 1057 . Electromagnetic 45 | . . 45 . Impact . | . . . . Slashing 510 | . . . 510 Piercing . | . . . . Highest Corruption 3 | . . 3 3 Average Corruption 3 | . . 3 3 Corruption Purged . | . . . . Corruption Blocked . | . . . . Effects 10 | . . 4 6 Message Errors 4 | . . 2 2 Matter Fused 2 | . . 1 1 Heat Flow Errors 1 | . . . 1 Data Loss (minor) 2 | . . . 2 Data Loss (major) 1 | . . 1 . Overload Shots . | . . . . Overflow Damage 100 | . . 56 44 Projectiles . | . . . . Explosions 56 | . . 56 . Melee 44 | . . . 44 Knockbacks . | . . . . Impact . | . . . . Kinetic . | . . . . Secondary . | . . . . Self-Inflicted Damage 154 | . . 154 . Shots 5 | . . 5 . Rammed 1 | . 1 . . Targets Rammed 1 | . 1 . . Kicked . | . . . . Crushed . | . . . . Highest Temperature 159 | . 24 36 159 Average Temperature 18 | . 9 13 99 Received Heat Transfer 258 | . 24 120 114 Siege Activations . | . . . . Robots Corrupted . | . . . . Combat Hostiles . | . . . . Parts Fried . | . . . . Impact Corruptions . | . . . . Robots Melted . | . . . . Combat Hostiles . | . . . . Parts Melted . | . . . . Heat Transferred . | . . . . Parts Sabotaged . | . . . . Parts Stolen . | . . . . Parts Stripped . | . . . . Power Chain Reactions . | . . . . Alert | -11 -10 -10 -10 ------- Run | Yrd Mat Min Sub Peak Influence 60 | . 60 48 . Initial 23 | . . 23 . Average 18 | . 13 23 . Maximum Alert Level . | . . . . Low Security (%) 100 | 100 100 100 . Level 1 . | . . . . Level 2 . | . . . . Level 3 . | . . . . Level 4 . | . . . . Level 5 . | . . . . High Security . | . . . . Max Security . | . . . . Squads Dispatched 2 | . 2 . . Investigation . | . . . . Extermination . | . . . . Reinforcement 2 | . 2 . . Assault . | . . . . Garrison . | . . . . Intercept . | . . . . Searches Triggered . | . . . . Construction Impeded . | . . . . Haulers Reinforced . | . . . . Active Scanning Responses . | . . . . Cargo Convoy Interrupts . | . . . . Stealth | -11 -10 -10 -10 --------- Run | Yrd Mat Min Sub Distress Signals . | . . . . Communications Jammed . | . . . . Distress Signals . | . . . . Times Spotted 28 | . 5 21 2 Peak Tracking Total 13 | . 2 13 2 Tactical Retreats 2 | . 1 1 . Traps | -11 -10 -10 -10 ------- Run | Yrd Mat Min Sub Traps Triggered 1 | . . . 1 Indirectly . | . . . . Trap Hack Attempts . | . . . . Triggered . | . . . . Disarmed . | . . . . Reprogrammed . | . . . . Reused . | . . . . Traps Extracted . | . . . . Installed . | . . . . Triggered . | . . . . Machines | -11 -10 -10 -10 ---------- Run | Yrd Mat Min Sub Machines Disabled . | . . . . Max in Single Turn . | . . . . Machines Repaired . | . . . . Machines Dismantled . | . . . . Machines Sabotaged . | . . . . Overloaded Fab Kills . | . . . . Hacking | -11 -10 -10 -10 --------- Run | Yrd Mat Min Sub Machines Accessed 1 | . 1 . . Terminals 1 | . 1 . . Fabricators . | . . . . Repair Stations . | . . . . Recycling Units . | . . . . Scanalyzers . | . . . . Garrison Access . | . . . . Total Hacks 3 | . 3 . . Successful . | . . . . Failed 3 | . 3 . . Catastrophic 1 | . 1 . . Database Lockouts . | . . . . Manual 3 | . 3 . . Terminals 3 | . 3 . . Fabricators . | . . . . Repair Stations . | . . . . Recycling Units . | . . . . Scanalyzers . | . . . . Garrison Access . | . . . . Terminal Hacks . | . . . . Fabricator Hacks . | . . . . Repair Station Hacks . | . . . . Recycling Unit Hacks . | . . . . Scanalyzer . | . . . . Garrison Access Hacks . | . . . . Unauthorized Hacks . | . . . . Terminals . | . . . . Fabricators . | . . . . Repair Stations . | . . . . Recycling Units . | . . . . Scanalyzers . | . . . . Garrison Access . | . . . . Data Cores Recovered . | . . . . Used . | . . . . Hacking Detections 1 | . 1 . . Full Trace Events . | . . . . Feedback Events . | . . . . Feedback Blocked . | . . . . Robot Schematics Acquired . | . . . . Robots Built . | . . . . Authchips . | . . . . Time . | . . . . Total Robot Build Rating . | . . . . Part Schematics Acquired . | . . . . Parts Built . | . . . . Authchips . | . . . . Time . | . . . . Total Part Build Rating . | . . . . Parts Repaired . | . . . . Time . | . . . . Parts Recycled . | . . . . Recycled Matter . | . . . . Retrieved Matter . | . . . . Retrieved Components . | . . . . Parts Scanalyzed . | . . . . Part Schematics Acquired . | . . . . Parts Damaged . | . . . . Bothacking | -11 -10 -10 -10 ------------ Run | Yrd Mat Min Sub Used RIF Installer . | . . . . Robots Hacked . | . . . . Non-combat . | . . . . Combat . | . . . . Robot Hacks Applied . | . . . . Relay Couplers Released . | . . . . Fabnet Peak Effective % . | . . . . Robots Rewired . | . . . . Allies Hacked . | . . . . Hacks Repelled . | . . . . Allies | -11 -10 -10 -10 -------- Run | Yrd Mat Min Sub Total Allies . | . . . . Largest Group . | . . . . Highest-Rated Group . | . . . . Highest-Rated Ally . | . . . . Total Orders . | . . . . Ally Attacks . | . . . . Total Damage . | . . . . Kills . | . . . . Allies Corrupted . | . . . . Allies Melted . | . . . . Intel | -11 -10 -10 -10 ------- Run | Yrd Mat Min Sub Robot Analysis Total . | . . . . Derelict Logs Recovered 1 | . . 1 . Drone Launches . | . . . . Drone Recoveries . | . . . . Exploration | -11 -10 -10 -10 ------------- Run | Yrd Mat Min Sub Turns Passed 1073 | 80 204 533 256 Spaces Moved 638 | 43 109 296 190 Core 18 | 10 . . 8 Treads 462 | 33 109 296 24 Legs . | . . . . Wheels 158 | . . . 158 Hover . | . . . . Flight . | . . . . Fastest Speed 50 | 50 160 160 80 Average Speed 142 | 140 160 160 104 Slowest Speed 250 | 160 160 160 250 Overloaded Moves . | . . . . Propulsion Burnouts . | . . . . Robots Hopped . | . . . . Cave-ins Triggered . | . . . . Exploration Rate (%) 26 | 3 27 59 15 Regions Visited 3 Branch Regions 2 Pre-discovered Areas 1 | . . 1 . Known Exits Taken . | . . . . Unknown Exits Taken 3 | 1 1 1 . Scrap Searched 2 | . . 1 1 Spaces Dug 3 | . . 3 . Terrain Destroyed 41 | . . 41 . Melee 3 | . . 3 . Projectile . | . . . . AOE 38 | . . 38 . Terrain Rammed . | . . . . Walls Destroyed . | . . . . Machines Disabled . | . . . . Actions | -11 -10 -10 -10 --------- Run | Yrd Mat Min Sub Total 736 | 60 126 323 227 Wait 16 | 7 . . 9 Move 635 | 42 108 295 190 Hop . | . . . . Pick Up 15 | 5 6 1 3 Fast Attach 9 | 5 1 . 3 Attach 7 | 1 . 4 2 Detach . | . . . . Swap 4 | . 1 2 1 Drop 3 | . 2 1 . Fire 25 | . 7 16 2 Melee 21 | . . 4 17 Ram . | . . . . Kick . | . . . . Crush 1 | . 1 . . Escape Stasis . | . . . . Rewire . | . . . . Trap . | . . . . Miscellaneous . | . . . . Route ------- -11/Scrapyard -10/Materials -10/Mines (discovered 2 exits: [*Mat] / [*Sub]) -10/Subcaves History --------- Turn | Location | Event 17 | -11/Scrapyard | Discovered new exit (range 15) 81 | -11/Scrapyard | Entered Materials 247 | -10/Materials | Discovered new exit (range 7) 285 | -10/Materials | Entered Mines 302 | -10/Mines | Build established: Mutant 314 | -10/Mines | Met a Derelict bent on vengeance 418 | -10/Mines | A weapon hastily lodged in a ceiling crevice suddenly fell to the ground 545 | -10/Mines | Learned location of Mines (-9) 591 | -10/Mines | Discovered new exit (range 11) 664 | -10/Mines | Assembled infested the area 741 | -10/Mines | Destroyed 18 combat bots 747 | -10/Mines | Lost 5 parts (1p2u2w) 814 | -10/Mines | Discovered new exit (range 3) 818 | -10/Mines | Entered Subcaves 879 | -10/Subcaves | Core integrity fell below 50% 893 | -10/Subcaves | Core integrity fell below 20% 913 | -10/Subcaves | Lost 4 parts (1p2n1w) 945 | -10/Subcaves | Shifting Twisted Machinery released Mak. Hacking Suite 948 | -10/Subcaves | Shifting Twisted Machinery released Slug Cannon 1074 | -10/Subcaves | Destroyed by Piercing Trap Last Messages --------------- 00909_ Acquired Disposable Heat Sink. 00911_ Acquired 7 matter. 00913_ Acquired 1 matter. 00914_ YXY%VY FOK7XM:ES MF:LSHGHBXREL6AGM 00918_ Acquired Sub. Laser. 00923_ Acquired Scrap Shield Fragment. Mak. Hacking Suite falls loose from the Twisted Machinery. Slug Cannon falls loose from the Twisted Machinery. 00949_ Acquired Mak. Hacking Suite. 00950_ System corrupted: Component data lost. 00959_ Acquired Slug Cannon. 00991_ System corrupted: Heat flow error (+199). 01060_ System corrupted: Component data lost. 01063_ Searching scrap... 01063_ Found Flamer. 01063_ Found 19 Matter. 01064_ Acquired 19 matter. 01074_ Triggered Piercing Trap. 01074_ Spikes shoot up from the floor. 01074_ Critical hit (Impale). Map ----- +----------------------------------------------------+ | | | | | | | | | | | | | | | | | | | | | | | | | | | ?????????????????????????????????????????????????? | | ?????????????????????????????????????????????????? | | ?????????????????????????????????????????????????? | | ?????????????????????????????????????????????????? | | ?????????????????????????????????????????????????? | | ?????????????????????????????????????????????????? | | ?????????????????????????????????????????????????? | | ??????????????????????????###????????????????????? | | ?????????????###?????????? #????????????????????? | | ?????????????#"#??????????< #????????????????????? | | ?????????????# ####???####<<#????????????????????? | | ?????????????# |""##### $$ <#????????????????????? | | ?????????????## # @ <#????????????????????? | | ??????????????# ## ##????????????????????? | | ??????????###?#### ## ####???????????????????? | | ?????????## #?### "###### #???????????????????? | | ????????## ## " ### #???????????????????? | | ????????# ###?????????????????? | | ???????## ## #?????????????????? | | ????#### ## #?????????????????? | | ??? ##?????????????????? | | ???? ## ##??????????????????? | | ???? ## ##???????????????????? | | ???????# # ####????????????????????? | | ???????## ## #???????????????????????? | | ????????## ## ####??####??????????????? | | ?????????#### ### #### ###????????????? | | ???????????## ## ## ##???????????? | | ???????????# ##??????????? | | ???? ### #??????????? | | ### #???????????? | | ? # ## # ### ##???????????? | | ????????## #?# ## ##????????????? | | ?????????# ## #?### ### ##????????????? | | ?????????## #?# ##???#### ### #????????????? | | ??????????###?? ##??????## ## #???????????? | | ??????????????# ##???????# ## ###???????????? | +----------------------------------------------------+ Best States ------------- Heat Dissipation 25 Coolant Potential 50 Energy Generation 15 Energy Capacity 250 Matter Stores 300 Matter Capacity 300 Sight Range 16 Terrain Scan Density 10 Armor Coverage 150 Evasion (%) 50 Recoil Reduction 2 Item Schematics ----------------- None Robot Schematics ------------------ None Fabricated ------------ Nothing Alien Tech Used ----------------- None Achievements -------------- Exterminator Challenges ------------ None Game ------ Seed SpreadSuspensionCalibrator Manual? 0 Play Time 00:11:59 Cumulative 40.7 hours Start 2024.06.28 @ 20:39:34 End 2024.06.29 @ 18:24:19 Sessions 2 Manual Loads 0 Difficulty Rogue Special Mode None Game No. 25 Rogue 25 Adventurer 0 Explorer 0 Win Type - Total 2 Types 1/0/1/0/0/0/0/0/0 Lore% 31 Gallery% 40 Achievement% 34 Wizard Run 0 Options --------- Layout 0 ASCII 0 Keyboard 0 Movement Mouse Keybinds 0 Fullscreen 1 Font 24/Smallcaps Map View 76x50 Zoom Use 0% Tactical HUD 1 Map Filters NONE Filters NONE Steam 1 RUN: 1bce70b4-ff68-49f5-878a-63394bb2934d